fUSD/lending_fUSD_20250120
["ID","MTS","AMOUNT","RATE_DAILY","PERIOD"]
[349753063,1737413462676,-500.0,0.00020273,2]
[349753065,1737413462686,-586.84,0.00020273,2]
[349753067,1737413462696,-500.0,0.00020273,2]
[349753069,1737413462705,-500.0,0.00020273,2]
[349753071,1737413462716,-500.0,0.00020273,2]
[349753073,1737413462725,-500.0,0.00020273,2]
[349753075,1737413462735,-501.588696,0.00020273,2]
[349753077,1737413462744,-500.0,0.00020273,2]
[349753079,1737413462754,-500.0,0.00020273,2]
[349753081,1737413462763,-546.6052474,0.00020273,2]
[349753083,1737413462772,-500.0,0.00020273,2]
[349753085,1737413462782,-500.0,0.00020273,2]
[349753087,1737413462791,-500.0,0.00020273,2]
[349753089,1737413462801,-500.0,0.00020273,2]
[349753091,1737413462810,-610.94329177,0.00020273,2]
[349753092,1737413462819,-500.0,0.00020273,2]
[349753094,1737413462830,-500.0,0.00020273,2]
[349753096,1737413462839,-500.0,0.00020273,2]
[349753098,1737413462849,-614.99,0.00020273,2]
[349753100,1737413462859,-500.0,0.00020273,2]
[349753103,1737413462868,-383.683733,0.00020273,2]
[349753105,1737413462878,-500.0,0.00020273,2]
[349753106,1737413462887,-500.0,0.00020273,2]
[349753108,1737413462896,-500.0,0.00020273,2]
[349753110,1737413462905,-500.0,0.00020273,2]
[349753112,1737413462915,-670.14,0.00020273,2]
[349753114,1737413462924,-500.0,0.00020273,2]
[349753116,1737413462934,-500.0,0.00020273,2]
[349753118,1737413462944,-500.0,0.00020273,2]
[349753120,1737413462953,-500.0,0.00020273,2]
[349753122,1737413462964,-500.0,0.00020273,2]
[349753124,1737413462973,-500.0,0.00020273,2]
[349753126,1737413462982,-500.0,0.00020273,2]
[349753128,1737413462991,-500.0,0.00020273,2]
[349753130,1737413463000,-619.69,0.00020273,2]
[349753132,1737413463009,-500.0,0.00020273,2]
[349753134,1737413463019,-500.0,0.00020273,2]
[349753136,1737413463028,-500.0,0.00020273,2]
[349753138,1737413463038,-500.0,0.00020273,2]
[349753140,1737413463048,-500.0,0.00020273,2]
[349753142,1737413463057,-500.0,0.00020273,2]
[349753144,1737413463068,-179.70430011,0.00020273,2]
[349753146,1737413463079,-500.0,0.00020273,2]
[349753148,1737413463088,-500.0,0.00020273,2]
[349753149,1737413463097,-500.0,0.00020273,2]
[349753151,1737413463107,-500.0,0.00020273,2]
[349753153,1737413463117,-500.0,0.00020273,2]
[349753155,1737413463127,-500.0,0.00020273,2]
[349753157,1737413463137,-500.0,0.00020273,2]
[349753159,1737413463150,-500.0,0.00020273,2]
[349753161,1737413463159,-500.0,0.00020273,2]
[349753163,1737413463169,-500.0,0.00020273,2]
[349753165,1737413463180,-644.46,0.00020273,2]
[349753167,1737413463192,-500.0,0.00020273,2]
[349753169,1737413463203,-500.0,0.00020273,2]
[349753171,1737413463214,-500.0,0.00020273,2]
[349753173,1737413463223,-518.1,0.00020273,2]
[349753175,1737413463233,-500.0,0.00020273,2]
[349753177,1737413463243,-500.0,0.00020273,2]
[349753179,1737413463253,-500.0,0.00020273,2]
[349753181,1737413463265,-500.0,0.00020273,2]
[349753183,1737413463275,-500.0,0.00020273,2]
[349753185,1737413463285,-500.0,0.00020273,2]
[349753188,1737413463296,-500.0,0.00020273,2]
[349753190,1737413463307,-515.04958124,0.00020273,2]
[349753192,1737413463317,-348.98886691,0.00020273,2]
[349753194,1737413463326,-500.0,0.00020273,2]
[349753195,1737413463339,-500.0,0.00020273,2]
[349753197,1737413463348,-500.0,0.00020273,2]
[349753200,1737413463358,-500.0,0.00020273,2]
[349753201,1737413463368,-500.0,0.00020273,2]
[349753203,1737413463378,-500.0,0.00020273,2]
[349753206,1737413463388,-500.0,0.00020273,2]
[349753208,1737413463398,-500.0,0.00020273,2]
[349753209,1737413463408,-751.43,0.00020273,2]
[349753212,1737413463418,-500.0,0.00020273,2]
[349753213,1737413463427,-500.0,0.00020273,2]
[349753215,1737413463437,-500.0,0.00020273,2]
[349753217,1737413463446,-500.0,0.00020273,2]
[349753220,1737413463455,-500.0,0.00020273,2]
[349753222,1737413463465,-500.0,0.00020273,2]
[349753224,1737413463474,-500.0,0.00020273,2]
[349753225,1737413463484,-347.62367084,0.00020273,2]
[349753227,1737413463493,-500.0,0.00020273,2]
[349753230,1737413463503,-3094.83,0.00020273,2]
[349753232,1737413463513,-500.0,0.00020273,2]
[349753233,1737413463522,-779.28,0.00020273,2]
[349753235,1737413463532,-500.0,0.00020273,2]
[349753238,1737413463543,-681.53,0.00020273,2]
[349753240,1737413463552,-500.0,0.00020273,2]
[349753242,1737413463562,-500.0,0.00020273,2]
[349753244,1737413463572,-731.31,0.00020273,2]
[349753246,1737413463581,-500.0,0.00020273,2]
[349753248,1737413463591,-706.91,0.00020273,2]
[349753250,1737413463601,-500.0,0.00020273,2]
[349753252,1737413463610,-500.0,0.00020273,2]
[349753254,1737413463619,-2293.51,0.00020273,2]
[349753256,1737413463629,-748.4,0.00020273,2]
[349753258,1737413463639,-500.0,0.00020273,2]
[349753260,1737413463649,-500.0,0.00020273,2]
[349753262,1737413463659,-500.0,0.00020273,2]
[349753264,1737413463668,-848.41,0.00020273,2]
[349753266,1737413463678,-500.0,0.00020273,2]
[349753268,1737413463688,-500.0,0.00020273,2]
[349753270,1737413463698,-564.27,0.00020273,2]
[349753272,1737413463707,-654.07,0.00020273,2]
[349753274,1737413463718,-500.0,0.00020273,2]
[349753276,1737413463728,-1248.73,0.00020273,2]
[349753278,1737413463739,-2758.73,0.00020273,2]
[349753280,1737413463749,-500.0,0.00020273,2]
[349753282,1737413463759,-500.0,0.00020273,2]
[349753284,1737413463769,-500.0,0.00020273,2]
[349753286,1737413463779,-2295.91,0.00020273,2]
[349753288,1737413463789,-500.0,0.00020273,2]
[349753290,1737413463799,-500.0,0.00020273,2]
[349753292,1737413463808,-1000.0,0.00020273,2]
[349753294,1737413463818,-646.18,0.00020273,2]
[349753296,1737413463828,-617.19717958,0.00020273,2]
[349753298,1737413463839,-616.27,0.00020273,2]
[349753300,1737413463848,-194.48010431,0.00020273,2]
[349753302,1737413463858,-1564.22,0.00020273,2]
[349753304,1737413463867,-500.0,0.00020273,2]
[349753319,1737413464009,-500.0,0.00020273,2]
[349753321,1737413464019,-500.0,0.00020273,2]
[349753323,1737413464029,-500.0,0.00020273,2]
[349753326,1737413464039,-500.07,0.00020273,2]
[349753328,1737413464049,-500.0,0.00020273,2]
[349753330,1737413464058,-500.0,0.00020273,2]
[349753332,1737413464068,-683.62,0.00020273,2]
[349753334,1737413464077,-500.0,0.00020273,2]
[349753336,1737413464087,-722.8,0.00020273,2]
[349753338,1737413464097,-697.29,0.00020273,2]
[349753339,1737413464112,-898.11,0.00020273,2]
[349753342,1737413464124,-500.0,0.00020273,2]
[349753344,1737413464134,-500.0,0.00020273,2]
[349753345,1737413464153,-500.0,0.00020273,2]
[349753348,1737413464164,-500.0,0.00020273,2]
[349753349,1737413464174,-2305.31,0.00020273,2]
[349753351,1737413464186,-500.0,0.00020273,2]
[349753353,1737413464196,-500.0,0.00020273,2]
[349753355,1737413464206,-812.06,0.00020273,2]
[349753357,1737413464218,-500.0,0.00020273,2]
[349753359,1737413464229,-500.0,0.00020273,2]
[349753361,1737413464239,-500.0,0.00020273,2]
[349753363,1737413464249,-500.0,0.00020273,2]
[349753366,1737413464260,-500.0,0.00020273,2]
[349753367,1737413464269,-500.0,0.00020273,2]
[349753370,1737413464279,-500.0,0.00020273,2]
[349753372,1737413464290,-707.47,0.00020273,2]
[349753374,1737413464300,-500.0,0.00020273,2]
[349753376,1737413464310,-2089.96,0.00020273,2]
[349753378,1737413464320,-500.0,0.00020273,2]
[349753380,1737413464331,-500.0,0.00020273,2]
[349753382,1737413464341,-425.82599224,0.00020273,2]
[349753384,1737413464353,-2404.67,0.00020273,2]
[349753386,1737413464364,-1285.53,0.00020273,2]
[349753388,1737413464375,-500.0,0.00020273,2]
[349753390,1737413464384,-516.56,0.00020273,2]
[349753392,1737413464394,-622.58,0.00020273,2]
[349753394,1737413464403,-500.0,0.00020273,2]
[349753396,1737413464413,-500.0,0.00020273,2]
[349753398,1737413464423,-200.0,0.00020273,2]
[349753400,1737413464433,-500.0,0.00020273,2]
[349753402,1737413464443,-1545.38,0.00020273,2]
[349753404,1737413464454,-500.0,0.00020273,2]
[349753406,1737413464464,-500.0,0.00020273,2]
[349753408,1737413464473,-2498.45,0.00020273,2]
[349753410,1737413464483,-500.0,0.00020273,2]
[349753412,1737413464492,-500.0,0.00020273,2]
[349753414,1737413464501,-500.0,0.00020273,2]
[349753416,1737413464511,-1528.46,0.00020273,2]
[349753418,1737413464521,-500.0,0.00020273,2]
[349753420,1737413464530,-197.24584862,0.00020273,2]
[349753421,1737413464540,-500.0,0.00020273,2]
[349753422,1737413464550,-3714.97,0.00020273,2]
[349753423,1737413464559,-1768.18,0.00020273,2]
[349753424,1737413464568,-508.3901249,0.00020273,2]
[349753425,1737413464578,-500.0,0.00020273,2]
[349753426,1737413464588,-2404.9,0.00020273,2]
[349753427,1737413464598,-1018.93,0.00020273,2]
[349753428,1737413464607,-250.80157353,0.00020273,2]
[349753429,1737413464617,-500.0,0.00020273,2]
[349753430,1737413464627,-500.0,0.00020273,2]
[349753431,1737413464638,-664.32,0.00020273,2]
[349753432,1737413464648,-1006.19,0.00020273,2]
[349753433,1737413464657,-3714.06,0.00020273,2]
[349753435,1737413464667,-500.0,0.00020273,2]
[349753437,1737413464676,-925.74,0.00020273,2]
[349753439,1737413464686,-500.0,0.00020273,2]
[349753440,1737413464695,-632.97,0.00020273,2]
[349753442,1737413464705,-500.0,0.00020273,2]
[349753444,1737413464714,-2070.27,0.00020273,2]
[349753446,1737413464723,-1247.49,0.00020273,2]
[349753449,1737413464733,-500.0,0.00020273,2]
[349753450,1737413464742,-655.67,0.00020273,2]
[349753452,1737413464752,-500.0,0.00020273,2]
[349753455,1737413464761,-500.0,0.00020273,2]
[349753456,1737413464771,-734.26,0.00020273,2]
[349753459,1737413464780,-1029.79,0.00020273,2]
[349753460,1737413464790,-500.0,0.00020273,2]
[349753462,1737413464800,-500.0,0.00020273,2]
[349753464,1737413464810,-1125.45,0.00020273,2]
[349753466,1737413464820,-1781.2,0.00020273,2]
[349753468,1737413464829,-500.0,0.00020273,2]
[349753470,1737413464839,-500.0,0.00020273,2]
[349753472,1737413464848,-1246.2,0.00020273,2]
[349753474,1737413464857,-1253.16,0.00020273,2]
[349753476,1737413464867,-500.0,0.00020273,2]
[349753478,1737413464876,-500.0,0.00020273,2]
[349753480,1737413464886,-500.0,0.00020273,2]
[349753482,1737413464895,-500.0,0.00020273,2]
[349753484,1737413464904,-500.0,0.00020273,2]
[349753486,1737413464914,-1118.64,0.00020273,2]
[349753488,1737413464923,-527.0177345,0.00020273,2]
[349753490,1737413464933,-500.0,0.00020273,2]
[349753492,1737413464943,-719.99,0.00020273,2]
[349753494,1737413464953,-500.0,0.00020273,2]
[349753496,1737413464962,-500.0,0.00020273,2]
[349753498,1737413464972,-500.0,0.00020273,2]
[349753500,1737413464981,-500.0,0.00020273,2]
[349753502,1737413464991,-500.0,0.00020273,2]
[349753504,1737413465001,-864.45,0.00020273,2]
[349753506,1737413465011,-3211.18,0.00020273,2]
[349753508,1737413465021,-500.0,0.00020273,2]
[349753510,1737413465030,-1259.28,0.00020273,2]
[349753512,1737413465040,-500.0,0.00020273,2]
[349753514,1737413465050,-584.09,0.00020273,2]
[349753516,1737413465059,-500.0,0.00020273,2]
[349753518,1737413465069,-500.0,0.00020273,2]
[349753520,1737413465078,-500.0,0.00020273,2]
[349753522,1737413465087,-500.0,0.00020273,2]
[349753524,1737413465097,-500.0,0.00020273,2]
[349753526,1737413465107,-500.0,0.00020273,2]
[349753528,1737413465117,-500.0,0.00020273,2]
[349753530,1737413465126,-1439.49,0.00020273,2]
[349753532,1737413465136,-2420.13,0.00020273,2]
[349753534,1737413465146,-1512.65,0.00020273,2]
[349753536,1737413465157,-500.0,0.00020273,2]
[349753538,1737413465167,-500.0,0.00020273,2]
[349753540,1737413465177,-500.0,0.00020273,2]
[349753542,1737413465192,-804.6,0.00020273,2]
[349753544,1737413465202,-1094.44,0.00020273,2]
[349753546,1737413465212,-4105.14,0.00020273,2]
[349753548,1737413465223,-500.0,0.00020273,2]
[349753550,1737413465232,-500.0,0.00020273,2]
[349753553,1737413465242,-2309.98,0.00020273,2]
[349753554,1737413465252,-1161.24,0.00020273,2]
[349753556,1737413465263,-500.0,0.00020273,2]
[349753558,1737413465273,-1549.06,0.00020273,2]
[349753560,1737413465285,-1981.88,0.00020273,2]
[349753562,1737413465295,-1608.56,0.00020273,2]
[349753564,1737413465306,-612.89800986,0.00020273,2]
[349753566,1737413465315,-500.0,0.00020273,2]
[349753568,1737413465325,-1093.11,0.00020273,2]
[349753570,1737413465334,-845.76,0.00020273,2]
[349753572,1737413465344,-500.0,0.00020273,2]
[349753574,1737413465354,-500.0,0.00020273,2]
[349753576,1737413465364,-2649.0,0.00020273,2]
[349753578,1737413465374,-500.0,0.00020273,2]
[349753580,1737413465384,-500.0,0.00020273,2]
[349753582,1737413465393,-881.77,0.00020273,2]
[349753584,1737413465402,-1503.8,0.00020273,2]
[349753586,1737413465412,-1140.51,0.00020273,2]
[349753588,1737413465422,-2925.51,0.00020273,2]
[349753590,1737413465431,-500.0,0.00020273,2]
[349753592,1737413465441,-500.0,0.00020273,2]
[349753594,1737413465451,-577.32,0.00020273,2]
[349753596,1737413465460,-500.0,0.00020273,2]
[349753598,1737413465470,-500.0,0.00020273,2]
[349753600,1737413465479,-927.97,0.00020273,2]
[349753602,1737413465489,-500.0,0.00020273,2]
[349753604,1737413465498,-366.10842298,0.00020273,2]
[349753606,1737413465508,-2594.35,0.00020273,2]
[349753607,1737413465517,-500.0,0.00020273,2]
[349753609,1737413465527,-500.0,0.00020273,2]
[349753611,1737413465537,-507.59,0.00020273,2]
[349753613,1737413465547,-500.0,0.00020273,2]
[349753615,1737413465556,-500.0,0.00020273,2]
[349753618,1737413465567,-500.0,0.00020273,2]
[349753619,1737413465577,-500.0,0.00020273,2]
[349753621,1737413465586,-1661.79,0.00020273,2]
[349753624,1737413465596,-649.35,0.00020273,2]
[349753626,1737413465605,-1410.08,0.00020273,2]
[349753628,1737413465615,-848.08,0.00020273,2]
[349753629,1737413465623,-500.0,0.00020273,2]
[349753631,1737413465632,-2182.08,0.00020273,2]
[349753633,1737413465642,-189.22168766,0.00020287,2]
[349753635,1737413465650,-204.55255995,0.000203,2]
[349753637,1737413465660,-501.68978667,0.00020321,2]
[349753639,1737413465669,-31881.03002702,0.00020332,2]
[349753641,1737413465679,-22308.13201168,0.00020332,2]
[349753643,1737413465688,-500.0,0.00020356,2]
[349753645,1737413465698,-535.88,0.00020433,2]
[349753647,1737413465707,-204.55255995,0.00020433,2]
[349753649,1737413465716,-832.0,0.00020447,2]
[349753651,1737413465725,-1720.31,0.00020447,2]
[349753652,1737413465735,-500.0,0.00020447,2]
[349753654,1737413465744,-500.0,0.00020447,2]
[349753656,1737413465754,-1971.63,0.00020447,2]
[349753657,1737413465764,-675.9,0.00020447,2]
[349753659,1737413465773,-500.0,0.00020447,2]
[349753661,1737413465783,-629.03,0.00020447,2]
[349753663,1737413465792,-554.35,0.00020447,2]
[349753664,1737413465802,-862.45,0.00020447,2]
[349753666,1737413465812,-760.23,0.00020447,2]
[349753668,1737413465821,-1302.02,0.00020447,2]
[349753669,1737413465831,-931.99,0.00020447,2]
[349753671,1737413465840,-734.92,0.00020447,2]
[349753672,1737413465849,-2217.99,0.00020447,2]
[349753674,1737413465862,-4359.78,0.00020447,2]
[349753676,1737413465871,-691.85,0.00020447,2]
[349753678,1737413465881,-736.95,0.00020447,2]
[349753679,1737413465890,-2335.99,0.00020447,2]
[349753681,1737413465900,-500.0,0.00020447,2]
[349753683,1737413465909,-753.44,0.00020447,2]
[349753684,1737413465919,-1162.69,0.00020447,2]
[349753686,1737413465929,-500.0,0.00020547,2]
[349753688,1737413465938,-548.00344852,0.00020547,2]
[349753690,1737413465948,-280.78875307,0.00020547,2]
[349753692,1737413465958,-500.0,0.00020547,2]
[349753693,1737413465967,-295.01119464,0.00020547,2]
[349753695,1737413465977,-544.3,0.00020547,2]
[349753697,1737413465986,-500.0,0.00020547,2]
[349753698,1737413465996,-500.0,0.00020547,2]
[349753700,1737413466005,-500.0,0.00020547,2]
[349753702,1737413466015,-500.0,0.00020547,2]
[349753703,1737413466024,-257.66628731,0.00020547,2]
[349753705,1737413466033,-500.0,0.00020547,2]
[349753706,1737413466042,-500.0,0.00020547,2]
[349753708,1737413466051,-500.0,0.00020547,2]
[349753710,1737413466060,-500.0,0.00020547,2]
[349753712,1737413466070,-500.0,0.00020547,2]
[349753714,1737413466080,-668.05,0.00020547,2]
[349753715,1737413466089,-505.78,0.00020547,2]
[349753717,1737413466098,-545.1,0.00020547,2]
[349753719,1737413466108,-569.13,0.00020547,2]
[349753720,1737413466117,-500.0,0.00020547,2]
[349753722,1737413466127,-621.99,0.00020547,2]
[349753724,1737413466136,-628.24,0.00020547,2]
[349753726,1737413466146,-500.0,0.00020547,2]
[349753727,1737413466155,-500.0,0.00020547,2]
[349753729,1737413466165,-1327.66,0.00020547,2]
[349753731,1737413466176,-500.0,0.00020547,2]
[349753733,1737413466190,-500.0,0.00020547,2]
[349753735,1737413466199,-500.0,0.00020547,2]
[349753736,1737413466208,-500.0,0.00020547,2]
[349753738,1737413466219,-500.0,0.00020547,2]
[349753740,1737413466230,-500.0,0.00020547,2]
[349753742,1737413466240,-580.30973532,0.00020547,2]
[349753744,1737413466249,-500.0,0.00020547,2]
[349753745,1737413466259,-500.0,0.00020547,2]
[349753747,1737413466268,-561.33,0.00020547,2]
[349753749,1737413466280,-500.0,0.00020547,2]
[349753751,1737413466289,-500.0,0.00020547,2]
[349753753,1737413466298,-500.0,0.00020547,2]
[349753754,1737413466308,-500.0,0.00020547,2]
[349753756,1737413466317,-383.05030952,0.00020547,2]
[349753758,1737413466327,-500.0,0.00020547,2]
[349753760,1737413466336,-500.0,0.00020547,2]
[349753762,1737413466346,-500.0,0.00020547,2]
[349753763,1737413466355,-500.0,0.00020547,2]
[349753765,1737413466364,-501.3,0.00020547,2]
[349753767,1737413466374,-528.71,0.00020547,2]
[349753769,1737413466383,-500.0,0.00020547,2]
[349753771,1737413466393,-500.0,0.00020547,2]
[349753773,1737413466403,-500.0,0.00020547,2]
[349753774,1737413466412,-500.0,0.00020547,2]
[349753776,1737413466422,-500.0,0.00020547,2]
[349753778,1737413466431,-500.0,0.00020547,2]
[349753780,1737413466441,-586.84,0.00020547,2]
[349753782,1737413466450,-500.0,0.00020547,2]
[349753784,1737413466459,-500.0,0.00020547,2]
[349753785,1737413466469,-500.0,0.00020547,2]
[349753787,1737413466478,-530.22295028,0.00020547,2]
[349753789,1737413466488,-501.588696,0.00020547,2]
[349753791,1737413466497,-500.0,0.00020547,2]
[349753792,1737413466507,-500.0,0.00020547,2]
[349753794,1737413466516,-500.0,0.00020547,2]
[349753796,1737413466526,-500.0,0.00020547,2]
[349753798,1737413466536,-500.0,0.00020547,2]
[349753811,1737413466678,-500.0,0.00020547,2]
[349753813,1737413466688,-500.0,0.00020547,2]
[349753815,1737413466698,-500.0,0.00020547,2]
[349753817,1737413466707,-322.46005771,0.00020547,2]
[349753819,1737413466717,-614.99,0.00020547,2]
[349753821,1737413466728,-500.0,0.00020547,2]
[349753822,1737413466738,-383.683733,0.00020547,2]
[349753824,1737413466748,-500.0,0.00020547,2]
[349753826,1737413466758,-500.0,0.00020547,2]
[349753828,1737413466767,-500.0,0.00020547,2]
[349753830,1737413466777,-500.0,0.00020547,2]
[349753832,1737413466787,-670.14,0.00020547,2]
[349753834,1737413466796,-500.0,0.00020547,2]
[349753835,1737413466805,-500.0,0.00020547,2]
[349753837,1737413466814,-500.0,0.00020547,2]
[349753839,1737413466823,-500.0,0.00020547,2]
[349753841,1737413466832,-500.0,0.00020547,2]
[349753842,1737413466842,-500.0,0.00020547,2]
[349753844,1737413466851,-500.0,0.00020547,2]
[349753846,1737413466860,-500.0,0.00020547,2]
[349753848,1737413466869,-619.69,0.00020547,2]
[349753850,1737413466878,-500.0,0.00020547,2]
[349753851,1737413466887,-500.0,0.00020547,2]
[349753853,1737413466897,-500.0,0.00020547,2]
[349753855,1737413466907,-500.0,0.00020547,2]
[349753856,1737413466916,-500.0,0.00020547,2]
[349753857,1737413466926,-500.0,0.00020547,2]
[349753858,1737413466939,-500.0,0.00020547,2]
[349753859,1737413466949,-500.0,0.00020547,2]
[349753860,1737413466958,-500.0,0.00020547,2]
[349753861,1737413466968,-500.0,0.00020547,2]
[349753862,1737413466978,-519.53250888,0.00020547,2]
[349753863,1737413466988,-500.0,0.00020547,2]
[349753864,1737413466997,-155.29931331,0.00020547,2]
[349753865,1737413467007,-500.0,0.00020547,2]
[349753866,1737413467016,-500.0,0.00020547,2]
[349753867,1737413467026,-644.46,0.00020547,2]
[349753868,1737413467035,-500.0,0.00020547,2]
[349753869,1737413467045,-500.0,0.00020547,2]
[349753870,1737413467055,-500.0,0.00020547,2]
[349753871,1737413467064,-500.0,0.00020547,2]
[349753872,1737413467074,-500.0,0.00020547,2]
[349753873,1737413467085,-633.36,0.00020547,2]
[349753874,1737413467095,-500.0,0.00020547,2]
[349753875,1737413467104,-500.0,0.00020547,2]
[349753876,1737413467114,-500.0,0.00020547,2]
[349753877,1737413467123,-500.0,0.00020547,2]
[349753878,1737413467133,-500.0,0.00020547,2]
[349753879,1737413467143,-500.0,0.00020547,2]
[349753880,1737413467153,-500.0,0.00020547,2]
[349753881,1737413467163,-500.0,0.00020547,2]
[349753882,1737413467172,-231.47586482,0.00020547,2]
[349753883,1737413467186,-500.0,0.00020547,2]
[349753884,1737413467195,-500.0,0.00020547,2]
[349753885,1737413467204,-751.43,0.00020547,2]
[349753886,1737413467214,-500.0,0.00020547,2]
[349753887,1737413467223,-500.0,0.00020547,2]
[349753888,1737413467233,-500.0,0.00020547,2]
[349753889,1737413467243,-500.0,0.00020547,2]
[349753890,1737413467252,-500.0,0.00020547,2]
[349753891,1737413467263,-500.0,0.00020547,2]
[349753892,1737413467272,-500.0,0.00020547,2]
[349753893,1737413467282,-3094.83,0.00020547,2]
[349753894,1737413467292,-779.28,0.00020547,2]
[349753895,1737413467301,-500.0,0.00020547,2]
[349753896,1737413467310,-681.53,0.00020547,2]
[349753897,1737413467320,-500.0,0.00020547,2]
[349753898,1737413467329,-500.0,0.00020547,2]
[349753900,1737413467339,-731.31,0.00020547,2]
[349753901,1737413467348,-500.0,0.00020547,2]
[349753903,1737413467358,-706.91,0.00020547,2]
[349753904,1737413467367,-500.0,0.00020547,2]
[349753905,1737413467376,-2293.51,0.00020547,2]
[349753906,1737413467386,-748.4,0.00020547,2]
[349753907,1737413467395,-500.0,0.00020547,2]
[349753908,1737413467404,-848.41,0.00020547,2]
[349753909,1737413467414,-564.27,0.00020547,2]
[349753910,1737413467423,-500.0,0.00020547,2]
[349753911,1737413467432,-654.07,0.00020547,2]
[349753912,1737413467441,-500.0,0.00020547,2]
[349753913,1737413467451,-1248.73,0.00020547,2]
[349753914,1737413467460,-2758.73,0.00020547,2]
[349753915,1737413467470,-500.0,0.00020547,2]
[349753916,1737413467480,-500.0,0.00020547,2]
[349753917,1737413467489,-500.0,0.00020547,2]
[349753918,1737413467501,-2295.91,0.00020547,2]
[349753919,1737413467510,-500.0,0.00020547,2]
[349753920,1737413467520,-1000.0,0.00020547,2]
[349753921,1737413467529,-646.18,0.00020547,2]
[349753922,1737413467539,-1564.22,0.00020547,2]
[349753923,1737413467548,-500.0,0.00020547,2]
[349753924,1737413467557,-500.0,0.00020547,2]
[349753925,1737413467567,-500.0,0.00020547,2]
[349753926,1737413467576,-500.0,0.00020547,2]
[349753927,1737413467585,-500.07,0.00020547,2]
[349753928,1737413467595,-500.0,0.00020547,2]
[349753929,1737413467604,-516.04565291,0.00020547,2]
[349753930,1737413467613,-683.62,0.00020547,2]
[349753931,1737413467622,-500.0,0.00020547,2]
[349753932,1737413467633,-722.8,0.00020547,2]
[349753933,1737413467643,-697.29,0.00020547,2]
[349753934,1737413467653,-898.11,0.00020547,2]
[349753935,1737413467663,-500.0,0.00020547,2]
[349753936,1737413467672,-500.0,0.00020547,2]
[349753937,1737413467682,-204.04880849,0.00020547,2]
[349753938,1737413467692,-500.0,0.00020547,2]
[349753939,1737413467702,-2305.31,0.00020547,2]
[349753940,1737413467711,-500.0,0.00020547,2]
[349753941,1737413467721,-500.0,0.00020547,2]
[349753942,1737413467730,-812.06,0.00020547,2]
[349753943,1737413467741,-500.0,0.00020547,2]
[349753944,1737413467750,-500.0,0.00020547,2]
[349753945,1737413467760,-500.0,0.00020547,2]
[349753946,1737413467770,-500.0,0.00020547,2]
[349753947,1737413467779,-500.0,0.00020547,2]
[349753948,1737413467789,-500.0,0.00020547,2]
[349753949,1737413467798,-500.0,0.00020547,2]
[349753950,1737413467808,-707.47,0.00020547,2]
[349753951,1737413467817,-500.0,0.00020547,2]
[349753952,1737413467826,-2089.96,0.00020547,2]